Cogmind - Beta 13 @@@ ROGUE MODE // 2024.04.29 @ 13:58:31 Player: trisiak Result: Destroyed by 73-U6G(R) with Subdweller Machine Gun Performance ------------- Evolutions (0) 0 Regions Visited (3) 600 Robots Destroyed (38) 190 Value Destroyed (901) 901 Prototype IDs (0) 0 Alien Tech Used (0) 0 Bonus (0) 0 TOTAL SCORE: 1691 Bonus ------- None Cogmind --------- Core Integrity 0/250 Matter 123/300 Energy 160/160 System Corruption 1% Temperature Cool (0) Movement Treading (320) Ox2 Location -10/Subcaves Parts ------- > --- POWER (1) -------- Light Nuclear Core > --- PROPULSION (2) --- Improved Treads Improved Treads > --- UTILITY (2) ------ Huge Storage Unit Makeshift Light Armor Plating > --- WEAPON (2) ------- Rocket Launcher > --- INVENTORY (25) --- Ion Engine Improved Treads Improved Treads Improved Heat Sink High-capacity Storage Unit Huge Storage Unit Large Battery (200) High-capacity Battery (250) High-capacity Matter Pod (0) Sensor Array Improved Terrain Scanner Seismic Detector Core Shielding Light Armor Plating High-powered Tractor Beam Autogun Autogun Autogun Autogun Heavy Battle Rifle Light Cannon Light Cannon Mining Claw Shrapnel Trap Peak State ------------ > --- POWER ------------ Light Nuclear Core > --- PROPULSION ------- Improved Treads Improved Treads > --- UTILITY ---------- Huge Storage Unit Makeshift Light Armor Plating > --- WEAPON ----------- Grenade Launcher Plasma Flamer > --- INVENTORY -------- Ion Engine Improved Treads Improved Treads Improved Heat Sink High-capacity Storage Unit Huge Storage Unit Large Battery High-capacity Battery High-capacity Matter Pod Sensor Array Improved Terrain Scanner Seismic Detector Core Shielding Light Armor Plating High-powered Tractor Beam Autogun Autogun Autogun Autogun Heavy Battle Rifle Light Cannon Light Cannon Rocket Launcher Mining Claw Shrapnel Trap [Rating: 22] Favorites ----------- Power Light Nuclear Core Engine Ion Engine Power Core Light Nuclear Core Propulsion Light Treads Treads Light Treads Leg Aluminum Leg Wheel Compact Wheel Utility Huge Storage Unit Device Improved Terrain Scanner Storage Huge Storage Unit Processor Signal Interpreter Hackware Hacking Suite Protection Makeshift Light Armor Plating Weapon Assault Rifle Ballistic Gun Assault Rifle Ballistic Cannon Light Cannon Launcher Grenade Launcher Special Weapon Plasma Flamer Slashing Weapon Mining Claw Build | -11 -10 -10 -10 ------- Run | Yrd Mat Min Sub Slots Evolved . | . . . . Power . | . . . . Propulsion . | . . . . Utility . | . . . . Weapon . | . . . . Parts Attached 64 | 7 45 8 4 Power 4 | . 3 1 . Engine 2 | . 2 . . Core 2 | . 1 1 . Reactor . | . . . . Propulsion 16 | 4 12 . . Treads 8 | . 8 . . Leg . | . . . . Wheel 8 | 4 4 . . Hover . | . . . . Flight . | . . . . Utility 24 | 2 16 3 3 Device 14 | 2 7 3 2 Storage 7 | . 7 . . Processor 1 | . 1 . . Hackware 1 | . 1 . . Protection 1 | . . . 1 Artifact . | . . . . Weapon 20 | 1 14 4 1 Energy Gun . | . . . . Energy Cannon . | . . . . Ballistic Gun 6 | 1 5 . . Ballistic Cannon 6 | . 6 . . Launcher 3 | . . 2 1 Special Weapon 3 | . 2 1 . Impact Weapon . | . . . . Slashing Weapon 2 | . 1 1 . Piercing Weapon . | . . . . Special Melee Weapon . | . . . . Unidentified Prototypes . | . . . . Parts Lost 3 | . 1 . 2 Power . | . . . . Propulsion . | . . . . Utility . | . . . . Weapon 3 | . 1 . 2 Highest Loss Streak 2 | . 1 . 2 To Critical Strikes . | . . . . Average Slot Usage (%) 99 | . 100 100 99 Engine 2 | . 4 . . Core 11 | . 9 14 14 Treads 26 | . 25 28 28 Wheel 1 | . 2 . . Device 10 | . 8 14 13 Storage 14 | . 14 14 14 Processor 2 | . 4 . . Ballistic Gun 11 | . 17 . . Ballistic Cannon 8 | . 8 11 . Launcher 4 | . . 10 14 Special Weapon 2 | . . 2 13 Slashing Weapon 1 | . 1 3 . Naked Turns . | . . . . Heaviest Build 92 | 14 92 92 92 Greatest Support 46 | 32 46 46 46 Greatest Overweight (x) 4 | 4 2 1 1 Average Overweight (x) . | . . 1 1 Largest Inventory Capacity 25 | 8 25 25 25 Average Capacity 19 | 8 16 25 25 Most Carried 25 | 8 23 25 25 Average Carried 17 | 7 13 24 24 Final Capacity 25 | 8 25 25 25 Final Carried 25 | 8 23 25 24 Class Distribution -------------------- 100% | Mutant Dominant Class ---------------- Mutant | -10/Materials Mutant | -10/Mines Mutant | -10/Subcaves Resources | -11 -10 -10 -10 ----------- Run | Yrd Mat Min Sub Matter Collected 1323 | 397 667 118 141 Remotely . | . . . . Salvage Created 1164 | 226 699 118 121 Parts 83 | 16 51 11 5 Haulers Intercepted 2 | . 2 . . Recyclers Shooed . | . . . . Parts Field Recycled . | . . . . Retrieved Matter . | . . . . Parts Self-Destructed 6 | . . . 6 Prevented . | . . . . Kills | -11 -10 -10 -10 ------- Run | Yrd Mat Min Sub Combat Hostiles Destroyed 23 | . 15 4 4 Guns 15 | . 15 . . AOE 8 | . . 4 4 Classes Destroyed 10 | 3 6 . 1 Worker 2 | 2 . . . Tunneler 6 | 6 . . . Hauler 2 | . 2 . . Recycler 1 | 1 . . . Mechanic 1 | . 1 . . Operator 1 | . 1 . . Watcher 2 | . 2 . . Swarmer 3 | . 3 . . Grunt 16 | . 12 4 . Subdweller 4 | . . . 4 Best Kill Streak 3 | 3 3 2 2 Combat Bots Only 3 | . 3 2 2 Max Kills in Single Turn 2 | 1 2 2 2 Gunslinging 1 | . 1 . . Exploded 2 | . . 2 2 Melee . | . . . . Uniques/NPCs Destroyed . | . . . . Combat | -11 -10 -10 -10 -------- Run | Yrd Mat Min Sub Hostile Shots Fired 118 | . 87 6 25 Missed 24 | . 16 3 5 Damage Taken 1405 | . 808 77 520 Core 268 | . 142 . 126 Absorbed by Shields . | . . . . Regen/Repaired (Parts) 52 | . 52 . . Core Remaining (%) 100 | 100 . . . Volleys Fired 123 | 40 73 3 7 Largest 2 | 2 2 1 1 Hottest 120 | 40 120 30 100 Shots Fired 232 | 80 141 4 7 Gun 204 | 80 124 . . Cannon 10 | . 10 . . Launcher 10 | . . 4 6 Special 8 | . 7 . 1 Kinetic 214 | 80 134 . . Thermal 8 | . 7 . 1 Explosive 10 | . . 4 6 Electromagnetic . | . . . . Robot Hit Streak 12 | 11 12 1 7 Robot Miss Streak 6 | 6 4 . . Penetration Max . | . . . . Secondary Targets 3 | . 3 . . Max Gunslinging Chain 1 | . 1 . . Shots Hit Robots 136 | 49 80 1 6 Core Hits 65 | 17 34 7 7 Critical Kills 1 | . 1 . . Critical Parts Destroyed 2 | 2 . . . Critical Strikes 3 | 2 1 . . Destroy 3 | 2 1 . . Melee Attacks 9 | . 7 2 . Impact . | . . . . Slashing 9 | . 7 2 . Piercing . | . . . . Sneak Attacks . | . . . . Combat Hostiles . | . . . . Follow-up Attacks . | . . . . Damage Inflicted 2406 | 509 1052 271 574 Guns 1471 | 509 962 . . Cannons 36 | . 36 . . Explosions 831 | . . 271 560 Melee . | . . . . Ramming 6 | . 6 . . Kinetic 1507 | 509 998 . . Thermal 62 | . 48 . 14 Explosive 831 | . . 271 560 Electromagnetic . | . . . . Impact . | . . . . Slashing . | . . . . Piercing . | . . . . Highest Corruption 1 | . 1 1 1 Average Corruption 1 | . 1 1 1 Corruption Purged . | . . . . Corruption Blocked . | . . . . Effects 27 | . 16 10 1 Message Errors 5 | . 3 2 . Matter Fused 7 | . 6 1 . Heat Flow Errors 6 | . 3 2 1 Energy Discharges 3 | . 1 2 . Data Loss (minor) 2 | . 1 1 . Data Loss (major) 2 | . 1 1 . Misfires 2 | . 1 1 . Overload Shots . | . . . . Overflow Damage 4 | . 4 . . Projectiles 4 | . 4 . . Explosions . | . . . . Melee . | . . . . Knockbacks 1 | . 1 . . Impact . | . . . . Kinetic 1 | . 1 . . Secondary . | . . . . Self-Inflicted Damage 153 | . . 36 117 Shots 5 | . . 1 4 Rammed 2 | . 2 . . Targets Rammed 2 | . 2 . . Kicked . | . . . . Crushed . | . . . . Highest Temperature 178 | . 178 157 67 Average Temperature 33 | . 28 70 34 Received Heat Transfer 399 | . 333 24 42 Siege Activations . | . . . . Robots Corrupted . | . . . . Combat Hostiles . | . . . . Parts Fried . | . . . . Impact Corruptions . | . . . . Robots Melted . | . . . . Combat Hostiles . | . . . . Parts Melted . | . . . . Heat Transferred 180 | . 100 . 80 Parts Sabotaged . | . . . . Parts Stolen . | . . . . Parts Stripped . | . . . . Power Chain Reactions . | . . . . Alert | -11 -10 -10 -10 ------- Run | Yrd Mat Min Sub Peak Influence 186 | 45 186 56 . Initial 29 | . 29 . . Average 53 | 22 68 21 . Maximum Alert Level . | . . . . Low Security (%) 100 | 100 100 100 . Level 1 . | . . . . Level 2 . | . . . . Level 3 . | . . . . Level 4 . | . . . . Level 5 . | . . . . High Security . | . . . . Max Security . | . . . . Squads Dispatched 4 | . 4 . . Investigation 3 | . 3 . . Extermination . | . . . . Reinforcement 1 | . 1 . . Assault . | . . . . Garrison . | . . . . Intercept . | . . . . Searches Triggered . | . . . . Construction Impeded . | . . . . Haulers Reinforced . | . . . . Active Scanning Responses . | . . . . Cargo Convoy Interrupts . | . . . . Stealth | -11 -10 -10 -10 --------- Run | Yrd Mat Min Sub Distress Signals 3 | . 3 . . Communications Jammed . | . . . . Distress Signals . | . . . . Times Spotted 43 | . 33 4 6 Peak Tracking Total 4 | . 4 2 3 Tactical Retreats 1 | . 1 . . Traps | -11 -10 -10 -10 ------- Run | Yrd Mat Min Sub Traps Triggered 3 | . 3 . . Indirectly . | . . . . Trap Hack Attempts . | . . . . Triggered . | . . . . Disarmed . | . . . . Reprogrammed . | . . . . Reused . | . . . . Traps Extracted . | . . . . Installed . | . . . . Triggered . | . . . . Most Traps Carried 1 | . . . 1 Machines | -11 -10 -10 -10 ---------- Run | Yrd Mat Min Sub Machines Disabled . | . . . . Max in Single Turn . | . . . . Machines Repaired . | . . . . Machines Dismantled . | . . . . Machines Sabotaged . | . . . . Overloaded Fab Kills . | . . . . Hacking | -11 -10 -10 -10 --------- Run | Yrd Mat Min Sub Machines Accessed 9 | . 9 . . Terminals 6 | . 6 . . Fabricators . | . . . . Repair Stations 1 | . 1 . . Recycling Units 2 | . 2 . . Scanalyzers . | . . . . Garrison Access . | . . . . Total Hacks 36 | . 36 . . Successful 25 | . 25 . . Failed 11 | . 11 . . Catastrophic . | . . . . Database Lockouts . | . . . . Manual 26 | . 26 . . Terminals 30 | . 30 . . Fabricators . | . . . . Repair Stations 2 | . 2 . . Recycling Units 4 | . 4 . . Scanalyzers . | . . . . Garrison Access . | . . . . Terminal Hacks 13 | . 13 . . Robot Analysis 3 | . 3 . . Branch Access Points 1 | . 1 . . Alert Level 2 | . 2 . . Transport Status 2 | . 2 . . Hauler Manifests 1 | . 1 . . Registered Components 1 | . 1 . . Zone Layout 3 | . 3 . . Fabricator Hacks . | . . . . Repair Station Hacks 2 | . 2 . . Scan Component 1 | . 1 . . Repair 1 | . 1 . . Recycling Unit Hacks 2 | . 2 . . Report Inventory 2 | . 2 . . Scanalyzer . | . . . . Garrison Access Hacks . | . . . . Unauthorized Hacks 8 | . 8 . . Terminals 7 | . 7 . . Track 1 | . 1 . . Botnet 6 | . 6 . . Fabricators . | . . . . Repair Stations . | . . . . Recycling Units 1 | . 1 . . Mask 1 | . 1 . . Scanalyzers . | . . . . Garrison Access . | . . . . Data Cores Recovered . | . . . . Used . | . . . . Hacking Detections 6 | . 6 . . Full Trace Events 6 | . 6 . . Feedback Events . | . . . . Feedback Blocked . | . . . . Robot Schematics Acquired . | . . . . Robots Built . | . . . . Authchips . | . . . . Time . | . . . . Total Robot Build Rating . | . . . . Part Schematics Acquired . | . . . . Parts Built . | . . . . Authchips . | . . . . Time . | . . . . Total Part Build Rating . | . . . . Parts Repaired 1 | . 1 . . Time 26 | . 26 . . Parts Recycled . | . . . . Recycled Matter . | . . . . Retrieved Matter . | . . . . Retrieved Components . | . . . . Parts Scanalyzed . | . . . . Part Schematics Acquired . | . . . . Parts Damaged . | . . . . Bothacking | -11 -10 -10 -10 ------------ Run | Yrd Mat Min Sub Used RIF Installer . | . . . . Robots Hacked . | . . . . Non-combat . | . . . . Combat . | . . . . Robot Hacks Applied . | . . . . Relay Couplers Released . | . . . . Fabnet Peak Effective % . | . . . . Robots Rewired . | . . . . Allies Hacked . | . . . . Hacks Repelled . | . . . . Allies | -11 -10 -10 -10 -------- Run | Yrd Mat Min Sub Total Allies . | . . . . Largest Group . | . . . . Highest-Rated Group . | . . . . Highest-Rated Ally . | . . . . Total Orders . | . . . . Ally Attacks . | . . . . Total Damage . | . . . . Kills . | . . . . Allies Corrupted . | . . . . Allies Melted . | . . . . Intel | -11 -10 -10 -10 ------- Run | Yrd Mat Min Sub Robot Analysis Total 3 | . 3 . . Derelict Logs Recovered 3 | . . 2 1 Drone Launches . | . . . . Drone Recoveries . | . . . . Exploration | -11 -10 -10 -10 ------------- Run | Yrd Mat Min Sub Turns Passed 4683 | 270 2851 1092 470 Spaces Moved 1968 | 128 1224 432 184 Core 2 | 2 . . . Treads 1572 | . 956 432 184 Legs 52 | 52 . . . Wheels 342 | 74 268 . . Hover . | . . . . Flight . | . . . . Fastest Speed 80 | 80 100 240 240 Average Speed 205 | 110 197 240 240 Slowest Speed 320 | 250 320 240 240 Overloaded Moves . | . . . . Propulsion Burnouts . | . . . . Robots Hopped . | . . . . Cave-ins Triggered . | . . . . Exploration Rate (%) 47 | 5 97 72 14 Regions Visited 3 Branch Regions 2 Pre-discovered Areas 2 | . . 1 1 Known Exits Taken 2 | . 1 1 . Unknown Exits Taken 1 | 1 . . . Scrap Searched 2 | . . . 2 Spaces Dug 5 | . 4 1 . Terrain Destroyed 72 | . 5 24 43 Melee 2 | . 1 1 . Projectile 4 | . 4 . . AOE 66 | . . 23 43 Terrain Rammed . | . . . . Walls Destroyed . | . . . . Machines Disabled . | . . . . Actions | -11 -10 -10 -10 --------- Run | Yrd Mat Min Sub Total 2358 | 184 1489 479 206 Wait 109 | 3 71 30 5 Move 1965 | 127 1223 431 184 Hop . | . . . . Pick Up 46 | 3 38 2 3 Fast Attach 8 | 3 4 1 . Attach 4 | . 3 . 1 Detach 3 | . 2 1 . Swap 52 | 4 38 7 3 Drop 37 | 4 28 2 3 Fire 123 | 40 73 3 7 Melee 9 | . 7 2 . Ram . | . . . . Kick . | . . . . Crush 2 | . 2 . . Escape Stasis . | . . . . Rewire . | . . . . Trap . | . . . . Miscellaneous . | . . . . Route ------- -11/Scrapyard -10/Materials (discovered 6 exits: *Mat x3 / *Min x2 / *Sub) -10/Mines (discovered 2 exits: *Mat / *Sub) -10/Subcaves (discovered 1 exit: [*Mat]) History --------- Turn | Location | Event 3 | -11/Scrapyard | Discovered new exit (range 1) 271 | -11/Scrapyard | Entered Materials 336 | -10/Materials | Build established: Mutant 548 | -10/Materials | Repaired Lgt. Treads? 665 | -10/Materials | Discovered new exit (range 15) 834 | -10/Materials | Identified exit to Materials 1212 | -10/Materials | Discovered new exit (range 10) 1225 | -10/Materials | Identified exit to Subcaves 1255 | -10/Materials | Identified exit to Mines 1660 | -10/Materials | Core integrity fell below 50% 1757 | -10/Materials | Discovered exit to Materials (range 10) 2844 | -10/Materials | Discovered exit to Materials (range 15) 3122 | -10/Materials | Entered Mines 3360 | -10/Mines | Received a Rocket Launcher from a helpful Derelict 3409 | -10/Mines | Learned location of Zion (-7) 3416 | -10/Mines | Learned 8 Materials zone layouts 3500 | -10/Mines | Discovered exit to Materials (range 5) 3741 | -10/Mines | Discovered exit to Subcaves (range 3) 3983 | -10/Mines | A weapon hastily lodged in a ceiling crevice suddenly fell to the ground 4214 | -10/Mines | Entered Subcaves 4218 | -10/Subcaves | Ambushed by Subdwellers from Twisted Machinery 4274 | -10/Subcaves | Met a Zionite searching for "candidates" 4424 | -10/Subcaves | A swath of the cavern ceiling suddenly collapsed 4542 | -10/Subcaves | Disturbed a concealed Subdweller 4653 | -10/Subcaves | Discovered new exit (range 4) 4670 | -10/Subcaves | A Subdweller sparked back to life 4670 | -10/Subcaves | A Subdweller sparked back to life 4670 | -10/Subcaves | A Subdweller sparked back to life 4673 | -10/Subcaves | Core integrity fell below 20% 4684 | -10/Subcaves | Destroyed by 73-U6G(R) with Subdweller Machine Gun Last Messages --------------- 04569_ Found Mak. Light Armor Plating. 04569_ Found 11 Matter. 04570_ Acquired 11 matter. 04575_ The unstable cave ceiling collapses. 04576_ Dropped Core Shielding. 04577_ Acquired Mak. Light Armor Plating. 04583_ Dropped Lrg. Matter Pod. 04583_ Acquired Shrapnel Trap. 04584_ Dropped Lgt. Cannon. 04587_ Acquired Hvy. Battle Rifle. 04593_ The unstable cave ceiling collapses. 04653_ EXIT=FOUND 04663_ Acquired derelict log, extracted data. Data stored: Storage entrances (x1). 04670_ P8-13W(R) creaks and sparks as it begins to move. 04670_ 73-U6G(R) creaks and sparks as it begins to move. 04670_ DM-EXR(R) creaks and sparks as it begins to move. 04678_ Grenade Launcher destroyed. 04678_ Plasma Flamer destroyed. 04684_ DM-EXR(R) destroyed. Map ----- +----------------------------------------------------+ | | | | | | | | | | | | | | | ????????????????#????????????????????????????????? | | ?????????????????????????????????????????????????? | | ???????????????#????#????????????????????????????? | | ?????????????????????????????????????????????????? | | ???#???????????????????????#?????????????????????? | | ?????#??????????#????????????????????????????????? | | ?#??????????????#????????????????????????????????? | | ?????###???#?????#?#???#????????#????????????????? | | ???### #????##?#????#?#??????????????????????????? | | ???# #&#####???????#??##?????????????????????????? | | ???## ""! "#?????????????????????????????????????? | | #??# ! #???????????????#????#????????????????? | | ??### ]###???????????????????????#?#???????????? | | ?#?# ## " ##????##???????????????????????????????? | | ???# # ##?????#??###??##?????????????????????? | | #??###" " #?????????# ### #?????????????????????? | | ???## ########### ## ####??#???????????????? | | ???# # # R #??????????????????? | | ??## @ #??????????????????? | | """ ######## ## #?????????????????? | | ###### ##??????##### %&R ##?????????????????? | | #?#?#### ##?#??#?????# & ##?????????????????? | | # ?### ###?#?????#?# #?????????????????? | | # ###???# ### < ##?????????????????? | | ?# ### ## ######??????????????????? | | ?## ## # ???????????????????????? | | ??#" # #???????????????????????? | | #?######## # ## #??????????????????????? | | # ?????##"# #?#### ### ???#???????????????????? | | "###???#### ##????# #?#????#??????????????????? | | #""#####"## ####?# ???????#?????????????????? | | ""#"#""#"" ## ???????????????????????? | | ""##"#"###"## ????????????????????????? | | "# " "#""""## ### #??????????????????????? | | """####"##""" ##??? ?????????????????????????? | | "#"??##"##"" #??????????????????????????????? | | ?"????#"#"## #??????????????????????????????? | | ""????##""" #??????????????????????????????? | | "??????###" ##??????????????????????????????? | | #???????## #???????????????????????????????? | | ?????????### #??????? #??????????????????????? | | ???????????## ##????? ???????????????????????? | | ?????##?#### ##????? #????????????????????????? | +----------------------------------------------------+ Best States ------------- Heat Dissipation 39 Energy Generation 14 Energy Capacity 250 Matter Stores 300 Matter Capacity 450 Sight Range 16 Robot Scan Range 14 Terrain Scan Range 16 Terrain Scan Density 10 Armor Coverage 100 Evasion (%) 55 Recoil Reduction 2 Offensive Hacking 10 Item Schematics ----------------- None Robot Schematics ------------------ None Fabricated ------------ Nothing Alien Tech Used ----------------- None Achievements -------------- Armchair Analyst root@ Challenges ------------ None Game ------ Seed DeliveryStealthPlatform Manual? 0 Play Time 00:44:09 Cumulative 60.8 hours Start 2024.04.29 @ 13:12:40 End 2024.04.29 @ 13:58:31 Sessions 1 Manual Loads 0 Difficulty Rogue Special Mode None Game No. 9 Rogue 3 Adventurer 6 Explorer 0 Win Type - Total 1 Types 1/0/0/0/0/0/0/0/0 Lore% 17 Gallery% 30 Achievement% 29 Wizard Run 0 Options --------- Layout 0 ASCII 0 Keyboard 1 Movement Vi Keybinds 0 Fullscreen 1 Font 24/Smallcaps Map View 113x50 Zoom Use 0% Tactical HUD 1 Map Filters NONE Filters NONE Steam 0 RUN: b420162f-45e8-4823-8728-99fbf550233d